Cogmind - Beta 10.2 @@@ ROGUE MODE // 2022.02.05 @ 12:52:34 Player: Zach Result: Destroyed by P-60 Hacker with Shock Rifle Performance ------------- Evolutions (3) 1500 Regions Visited (6) 1200 Robots Destroyed (37) 185 Value Destroyed (1328) 1328 Prototype IDs (3) 60 Alien Tech Used (0) 0 Bonus (0) 0 TOTAL SCORE: 4273 Bonus ------- None Cogmind --------- Core Integrity 0/700 Matter 261/300 Energy 20/100 System Corruption 3% Temperature Cool (0) Movement Core (50) Location -7/Factory Parts ------- > --- POWER (3) -------- (None) > --- PROPULSION (4) --- Carbon-fiber Leg > --- UTILITY (3) ------ Improved Signal Interpreter > --- WEAPON (3) ------- (None) > --- INVENTORY (4) ---- (None) Peak State ------------ > --- POWER ------------ Light Nuclear Core Light Nuclear Core > --- PROPULSION ------- Armored Treads Armored Treads > --- UTILITY ---------- Improved Signal Interpreter Improved Targeting Computer Particle Charger > --- WEAPON ----------- Ion Cannon Datajack Mining Laser > --- INVENTORY -------- Carbon-fiber Leg Cesium-ion Thruster Compact Matter Pod [Rating: 24] Favorites ----------- Power Light Nuclear Core Engine Light Ion Engine Power Core Light Nuclear Core Propulsion Aluminum Leg Treads Armored Treads Leg Aluminum Leg Wheel Compact Wheel Hover Unit Gravmag System Flight Unit Cooled VTOL Module Utility Improved Signal Interpreter Device Improved Sensor Array Storage Small Storage Unit Processor Improved Signal Interpreter Protection Light Armor Plating Weapon Rocket Launcher Energy Gun Electrolaser Energy Cannon Ion Cannon Ballistic Gun Assault Rifle Launcher Rocket Launcher Special Weapon Mining Laser Special Melee Weapon Datajack Build | -11 -10 -10 -9 -9 -8 -7 ------- Run | Scr Mat Min Mat Min Mat Fac Slots Evolved 6 | . . . 2 . 2 2 Power 2 | . . . 1 . 1 . Propulsion 2 | . . . . . . 2 Utility 1 | . . . 1 . . . Weapon 1 | . . . . . 1 . Parts Attached 80 | 7 1 3 18 1 35 15 Power 16 | 1 . 1 1 . 10 3 Engine 9 | 1 . . 1 . 4 3 Core 7 | . . 1 . . 6 . Reactor . | . . . . . . . Propulsion 22 | 3 . . 6 . 5 8 Treads 2 | . . . 2 . . . Leg 14 | 2 . . 4 . 4 4 Wheel 3 | 1 . . . . . 2 Hover 1 | . . . . . . 1 Flight 2 | . . . . . 1 1 Utility 19 | 1 1 . 8 . 6 3 Device 7 | . . . 2 . 2 3 Storage 6 | 1 1 . 3 . 1 . Processor 5 | . . . 2 . 3 . Hackware . | . . . . . . . Protection 1 | . . . 1 . . . Artifact . | . . . . . . . Weapon 23 | 2 . 2 3 1 14 1 Energy Gun 10 | . . 1 2 . 6 1 Energy Cannon 4 | . . . . . 4 . Ballistic Gun 5 | 2 . . 1 . 2 . Ballistic Cannon . | . . . . . . . Launcher 2 | . . 1 . . 1 . Special Weapon 1 | . . . . 1 . . Impact Weapon . | . . . . . . . Slashing Weapon . | . . . . . . . Piercing Weapon . | . . . . . . . Special Melee Weapon 1 | . . . . . 1 . Unidentified Prototypes 1 | . . . . . . 1 Parts Lost 41 | . . . 1 . 25 15 Power 10 | . . . . . 7 3 Propulsion 13 | . . . . . 6 7 Utility 6 | . . . . . 3 3 Weapon 12 | . . . 1 . 9 2 Highest Loss Streak 14 | . . . 1 . 14 9 Average Slot Usage (%) 83 | . 85 99 93 97 80 58 Engine 10 | . 14 4 9 11 10 13 Core 8 | . . 9 11 11 10 3 Treads 5 | . . . 7 22 6 . Leg 11 | . 28 28 14 . 6 7 Device 4 | . . . 4 . 6 6 Storage 10 | . 14 28 19 11 2 . Processor 11 | . . . 6 22 17 13 Energy Gun 5 | . . 9 3 . 4 10 Energy Cannon 2 | . . . . . 7 . Ballistic Gun 5 | . 28 16 3 . 2 . Launcher 4 | . . 1 11 11 1 1 Special Weapon 1 | . . . . 8 2 . Naked Turns . | . . . . . . . Heaviest Build 36 | 11 13 17 23 14 36 33 Greatest Support 45 | 10 20 20 40 40 40 45 Greatest Overweight (x) 3 | 1 1 . 1 . 3 3 Average Overweight (x) . | . . . . . 1 . Largest Inventory Capacity 6 | 6 6 6 6 4 4 4 Average Capacity 4 | 5 6 6 5 4 4 4 Most Carried 6 | 5 5 6 6 4 4 4 Average Carried 2 | 2 3 3 3 2 2 1 Final Capacity 6 | 6 6 6 4 4 4 4 Final Carried 5 | 3 3 5 4 2 3 . Class Distribution -------------------- 68% | Mutant 18% | Scavenger-Skirmisher 13% | Scavenger-Mutant Dominant Class ---------------- Mutant | -10/Materials Mutant | -10/Mines Mutant | -9/Materials Mutant | -9/Mines Scavenger-Skirmisher | -8/Materials Scavenger-Mutant | -7/Factory Resources | -11 -10 -10 -9 -9 -8 -7 ----------- Run | Scr Mat Min Mat Min Mat Fac Matter Collected 1160 | 204 34 84 238 13 529 58 Remotely 52 | . . . 52 . . . Salvage Created 1167 | . 34 44 321 13 697 58 Parts 74 | . 1 2 25 4 42 . Haulers Intercepted . | . . . . . . . Recyclers Shooed . | . . . . . . . Parts Field Recycled . | . . . . . . . Retrieved Matter . | . . . . . . . Parts Self-Destructed . | . . . . . . . Prevented . | . . . . . . . Kills | -11 -10 -10 -9 -9 -8 -7 ------- Run | Scr Mat Min Mat Min Mat Fac Combat Hostiles Destroyed 31 | . 1 1 8 4 16 1 Guns 14 | . 1 1 3 . 8 1 Cannons 5 | . . . . 1 4 . AOE 12 | . . . 5 3 4 . Classes Destroyed 7 | . 1 . 3 1 2 . Builder 2 | . . . 1 . 1 . Operator 1 | . . . . . 1 . Watcher 3 | . . . 1 . 2 . Swarmer 4 | . . . . 4 . . Grunt 22 | . 1 1 7 . 12 1 Brawler 1 | . . . . . 1 . Sentry 4 | . . . 1 . 3 . Best Kill Streak 5 | . 1 1 5 4 4 1 Combat Bots Only 5 | . 1 1 5 4 3 1 Max Kills in Single Turn 3 | . 1 1 3 3 3 1 Gunslinging . | . . . . . . . Exploded 3 | . . . 2 3 2 . Melee . | . . . . . . . Uniques/NPCs Destroyed . | . . . . . . . Combat | -11 -10 -10 -9 -9 -8 -7 -------- Run | Scr Mat Min Mat Min Mat Fac Damage Taken 4827 | . . 65 377 41 2686 1658 Core 1268 | . . 26 65 . 476 701 Absorbed by Shields 28 | . . . . . . 28 Core Remaining (%) 71 | 100 . 89 . 83 13 . Volleys Fired 125 | . 2 4 27 3 75 14 Largest 3 | . 2 2 2 1 3 2 Hottest 191 | . 40 40 56 100 191 119 Shots Fired 153 | . 4 8 30 3 93 15 Gun 104 | . 4 8 27 . 50 15 Cannon 35 | . . . . . 35 . Launcher 11 | . . . 3 1 7 . Special 3 | . . . . 2 1 . Kinetic 55 | . 4 8 15 . 28 . Thermal 87 | . . . 12 2 58 15 Explosive 11 | . . . 3 1 7 . Electromagnetic . | . . . . . . . Robot Hit Streak 8 | . 2 5 4 5 8 5 Robot Miss Streak 3 | . 2 2 2 1 3 1 Penetration Max . | . . . . . . . Secondary Targets . | . . . . . . . Shots Hit Robots 98 | . 2 5 22 2 56 11 Core Hits 71 | . 2 4 17 4 38 6 Critical Hits 2 | . . . 1 . 1 . Critical Kills . | . . . . . . . Critical Parts Destroyed 2 | . . . 1 . 1 . Melee Attacks 1 | . . . . . 1 . Impact . | . . . . . . . Slashing . | . . . . . . . Piercing . | . . . . . . . Sneak Attacks . | . . . . . . . Combat Hostiles . | . . . . . . . Follow-up Attacks . | . . . . . . . Damage Inflicted 2816 | . 22 76 604 133 1796 185 Guns 1321 | . 22 76 291 . 755 177 Cannons 433 | . . . . . 433 . Explosions 1030 | . . . 313 109 608 . Melee . | . . . . . . . Ramming 8 | . . . . . . 8 Kinetic 813 | . 22 76 162 . 553 . Thermal 1090 | . . . 129 24 760 177 Explosive 905 | . . . 313 109 483 . Electromagnetic . | . . . . . . . Impact . | . . . . . . . Slashing . | . . . . . . . Piercing . | . . . . . . . Highest Corruption 3 | . . . . . . 3 Average Corruption 2 | . . . . . . 2 Corruption Purged . | . . . . . . . Effects 1 | . . . . . . 1 Matter Fused 1 | . . . . . . 1 Overload Shots . | . . . . . . . Overflow Damage 35 | . . . . . 35 . Projectiles 23 | . . . . . 23 . Explosions 12 | . . . . . 12 . Melee . | . . . . . . . Knockbacks . | . . . . . . . Impact . | . . . . . . . Kinetic . | . . . . . . . Secondary . | . . . . . . . Self-Inflicted Damage 1 | . . . . . . 1 Shots . | . . . . . . . Rammed 2 | . . . . . . 2 Targets Rammed 5 | . . . . . . 5 Kicked 3 | . . . . . . 3 Crushed . | . . . . . . . Highest Temperature 478 | . . 2 306 72 478 300 Average Temperature 152 | . . 2 116 38 166 139 Received Heat Transfer 2227 | . . 39 153 . 1440 595 Effects 17 | . . . . . 17 . Shutdowns 7 | . . . . . 7 . Energy Bleed 2 | . . . . . 2 . Interference 6 | . . . . . 6 . Matter Decay 1 | . . . . . 1 . Damage (minor) 1 | . . . . . 1 . Siege Activations . | . . . . . . . Robots Corrupted . | . . . . . . . Combat Hostiles . | . . . . . . . Parts Fried . | . . . . . . . Impact Corruptions . | . . . . . . . Robots Melted . | . . . . . . . Combat Hostiles . | . . . . . . . Parts Melted 6 | . . 1 2 . 1 2 Heat Transferred 2037 | . . . 333 50 1210 444 Parts Sabotaged . | . . . . . . . Parts Stolen . | . . . . . . . Parts Stripped . | . . . . . . . Power Chain Reactions . | . . . . . . . Missiles Intercepted . | . . . . . . . Alert | -11 -10 -10 -9 -9 -8 -7 ------- Run | Scr Mat Min Mat Min Mat Fac Peak Influence 228 | . 45 37 228 103 199 96 Initial 59 | . . 17 14 13 39 59 Average 82 | . 17 32 96 85 112 64 Maximum Alert Level 1 | . . . 1 . . . Low Security (%) 96 | 100 100 100 87 100 100 100 Level 1 3 | . . . 12 . . . Level 2 . | . . . . . . . Level 3 . | . . . . . . . Level 4 . | . . . . . . . Level 5 . | . . . . . . . High Security . | . . . . . . . Max Security . | . . . . . . . Squads Dispatched 8 | . 1 . 2 . 3 2 Investigation 5 | . 1 . 1 . 2 1 Extermination 1 | . . . . . . 1 Reinforcement 2 | . . . 1 . 1 . Assault . | . . . . . . . Garrison . | . . . . . . . Intercept . | . . . . . . . Construction Impeded 1 | . . . . . 1 . Haulers Reinforced . | . . . . . . . Stealth | -11 -10 -10 -9 -9 -8 -7 --------- Run | Scr Mat Min Mat Min Mat Fac Distress Signals 2 | . . . 1 . 1 . Communications Jammed . | . . . . . . . Distress Signals . | . . . . . . . Times Spotted 48 | . 2 2 8 4 23 9 Peak Tracking Total 7 | . 1 2 4 4 6 7 Tactical Retreats . | . . . . . . . Traps | -11 -10 -10 -9 -9 -8 -7 ------- Run | Scr Mat Min Mat Min Mat Fac Traps Triggered 1 | . . . . . 1 . Indirectly . | . . . . . . . Trap Hack Attempts . | . . . . . . . Triggered . | . . . . . . . Disarmed . | . . . . . . . Reprogrammed . | . . . . . . . Reused . | . . . . . . . Traps Extracted . | . . . . . . . Installed . | . . . . . . . Triggered . | . . . . . . . Machines | -11 -10 -10 -9 -9 -8 -7 ---------- Run | Scr Mat Min Mat Min Mat Fac Machines Disabled 5 | . . . . . 5 . Max in Single Turn 1 | . . . . . 1 . Machines Sabotaged . | . . . . . . . Garrisons Compromised . | . . . . . . . Overloaded Fab Kills . | . . . . . . . Fab Network Shutdowns . | . . . . . . . Hacking | -11 -10 -10 -9 -9 -8 -7 --------- Run | Scr Mat Min Mat Min Mat Fac Machines Accessed 6 | . 1 . 3 . 1 1 Terminals 3 | . 1 . 2 . . . Fabricators . | . . . . . . . Repair Stations 1 | . . . . . . 1 Recycling Units 2 | . . . 1 . 1 . Scanalyzers . | . . . . . . . Garrison Access . | . . . . . . . Total Hacks 25 | . 4 . 11 . 7 3 Successful 17 | . 1 . 9 . 6 1 Failed 8 | . 3 . 2 . 1 2 Catastrophic 1 | . 1 . . . . . Database Lockouts . | . . . . . . . Manual . | . . . . . . . Terminals 11 | . 4 . 7 . . . Fabricators . | . . . . . . . Repair Stations 3 | . . . . . . 3 Recycling Units 11 | . . . 4 . 7 . Scanalyzers . | . . . . . . . Garrison Access . | . . . . . . . Terminal Hacks 6 | . 1 . 5 . . . Record 2 | . . . 2 . . . Prototype ID Bank 1 | . . . 1 . . . Surveillance Status 1 | . . . 1 . . . Recall Investigation 1 | . . . 1 . . . Registered Components 1 | . 1 . . . . . Fabricator Hacks . | . . . . . . . Repair Station Hacks 1 | . . . . . . 1 Scan Component 1 | . . . . . . 1 Recycling Unit Hacks 10 | . . . 4 . 6 . Recycle Component 4 | . . . 2 . 2 . Process 4 | . . . 2 . 2 . Report Inventory 1 | . . . . . 1 . Retrieve Matter 1 | . . . . . 1 . Scanalyzer . | . . . . . . . Garrison Access Hacks . | . . . . . . . Unauthorized Hacks . | . . . . . . . Terminals . | . . . . . . . Fabricators . | . . . . . . . Repair Stations . | . . . . . . . Recycling Units . | . . . . . . . Scanalyzers . | . . . . . . . Garrison Access . | . . . . . . . Data Cores Recovered 1 | . . . . . 1 . Used . | . . . . . . . Hacking Detections 6 | . 1 . 3 . 1 1 Full Trace Events 6 | . 1 . 3 . 1 1 Feedback Events . | . . . . . . . Feedback Blocked . | . . . . . . . Robot Schematics Acquired . | . . . . . . . Robots Built . | . . . . . . . Matter . | . . . . . . . Time . | . . . . . . . Total Robot Build Rating . | . . . . . . . Part Schematics Acquired . | . . . . . . . Parts Built . | . . . . . . . Matter . | . . . . . . . Time . | . . . . . . . Total Part Build Rating . | . . . . . . . Parts Repaired . | . . . . . . . Time . | . . . . . . . Parts Recycled 4 | . . . 2 . 2 . Recycled Matter 250 | . . . 208 . 42 . Retrieved Matter 42 | . . . . . 42 . Retrieved Components . | . . . . . . . Parts Scanalyzed . | . . . . . . . Part Schematics Acquired . | . . . . . . . Parts Damaged . | . . . . . . . Bothacking | -11 -10 -10 -9 -9 -8 -7 ------------ Run | Scr Mat Min Mat Min Mat Fac Used RIF Installer . | . . . . . . . Robots Hacked 1 | . . . . . 1 . Non-combat 1 | . . . . . 1 . Combat . | . . . . . . . Robot Hacks Applied 1 | . . . . . 1 . parse_system 1 | . . . . . 1 . Relay Couplers Released . | . . . . . . . Robots Rewired . | . . . . . . . Allies Hacked . | . . . . . . . Hacks Repelled . | . . . . . . . Allies | -11 -10 -10 -9 -9 -8 -7 -------- Run | Scr Mat Min Mat Min Mat Fac Total Allies . | . . . . . . . Largest Group . | . . . . . . . Highest-Rated Group . | . . . . . . . Highest-Rated Ally . | . . . . . . . Total Orders . | . . . . . . . Ally Attacks . | . . . . . . . Total Damage . | . . . . . . . Kills . | . . . . . . . Allies Corrupted . | . . . . . . . Allies Melted . | . . . . . . . Intel | -11 -10 -10 -9 -9 -8 -7 ------- Run | Scr Mat Min Mat Min Mat Fac Robot Analysis Total . | . . . . . . . Derelict Logs Recovered . | . . . . . . . Drone Launches . | . . . . . . . Drone Recoveries . | . . . . . . . Exploration | -11 -10 -10 -9 -9 -8 -7 ------------- Run | Scr Mat Min Mat Min Mat Fac Turns Passed 2646 | 77 154 258 666 180 903 408 Spaces Moved 1422 | 57 96 188 367 98 379 237 Core 66 | 18 . . . . 24 24 Treads 350 | . . . 128 98 124 . Legs 938 | 39 96 188 239 . 223 153 Wheels 2 | . . . . . . 2 Hover 56 | . . . . . . 56 Flight 10 | . . . . . 8 2 Fastest Speed 40 | 50 120 120 120 170 40 50 Average Speed 146 | 107 148 120 148 170 170 124 Slowest Speed 210 | 150 150 120 170 170 210 210 Overloaded Moves . | . . . . . . . Propulsion Burnouts . | . . . . . . . Robots Hopped . | . . . . . . . Cave-ins Triggered . | . . . . . . . Exploration Rate (%) 16 | 4 17 20 27 19 24 7 Regions Visited 6 Branch Regions 2 Pre-discovered Areas . | . . . . . . . Known Exits Taken 2 | . . . 1 1 . . Unknown Exits Taken 4 | 1 1 1 . . 1 . Scrap Searched . | . . . . . . . Spaces Dug . | . . . . . . . Terrain Destroyed 149 | . . . 25 15 109 . Melee . | . . . . . . . Projectile 5 | . . . . 1 4 . AOE 144 | . . . 25 14 105 . Terrain Rammed . | . . . . . . . Walls Destroyed . | . . . . . . . Machines Disabled . | . . . . . . . Actions | -11 -10 -10 -9 -9 -8 -7 --------- Run | Scr Mat Min Mat Min Mat Fac Total 1851 | 73 105 215 465 106 551 336 Wait 68 | . . 10 7 . 3 48 Move 1416 | 56 95 187 366 97 378 237 Hop . | . . . . . . . Pick Up 100 | 9 4 6 24 2 44 11 Fast Attach . | . . . . . . . Attach 67 | 7 1 2 11 1 31 14 Detach 4 | 1 . 1 2 . . . Swap 13 | . . 1 7 . 4 1 Drop 52 | . 3 4 21 3 15 6 Fire 125 | . 2 4 27 3 75 14 Melee 1 | . . . . . 1 . Ram 1 | . . . . . . 1 Kick 4 | . . . . . . 4 Crush . | . . . . . . . Escape Stasis . | . . . . . . . Rewire . | . . . . . . . Trap . | . . . . . . . Miscellaneous . | . . . . . . . Route ------- -11/Scrapyard -10/Materials -10/Mines -9/Materials -9/Mines -8/Materials -7/Factory History --------- Turn | Location | Event 45 | -11/Scrapyard | Discovered new exit (range 14) 78 | -11/Scrapyard | Entered Materials 125 | -10/Materials | Discovered new exit (range 16) 232 | -10/Materials | Entered Mines 270 | -10/Mines | Met a Derelict bent on vengeance 304 | -10/Mines | Build established: Mutant 356 | -10/Mines | Assembled infested the area 361 | -10/Mines | Assisted by a Guerilla fighting off Assembled 466 | -10/Mines | Received a Rocket Launcher from a helpful Derelict 478 | -10/Mines | Discovered new exit (range 3) 490 | -10/Mines | Entered Materials 490 | -9/Materials | Evolved 2 slots: Power x1, Utility x1 1126 | -9/Materials | Discovered new exit (range 6) 1133 | -9/Materials | Identified exit to Mines 1156 | -9/Materials | Entered Mines 1251 | -9/Mines | Discovered new exit (range 10) 1271 | -9/Mines | Identified exit to Materials 1336 | -9/Mines | Entered Materials 1336 | -8/Materials | Evolved 2 slots: Power x1, Weapon x1 1636 | -8/Materials | Lost 5 parts (2p1u2w) 1691 | -8/Materials | Core integrity fell below 50% 1723 | -8/Materials | Lost 14 parts (3p5n2u4w) 1855 | -8/Materials | Core integrity fell below 20% 2117 | -8/Materials | Discovered new exit (range 10) 2239 | -8/Materials | Entered Factory 2239 | -7/Factory | Evolved 2 slots: Propulsion x2 2622 | -7/Factory | Lost 9 parts (3p2n3u1w) 2633 | -7/Factory | Core integrity fell below 50% 2643 | -7/Factory | Core integrity fell below 20% 2647 | -7/Factory | Destroyed by P-60 Hacker with Shock Rifle Last Messages --------------- Gravmag System destroyed. Acquired Carbon-fiber Leg. Identified Cld. VTOL Module. Acquired Carbon-fiber Leg. U-05 Engineer lays Concrete. P-60 Hacker resets G-47 Trooper, system corruption cleaned. Kicked G-47 Trooper out of the way. Kicked P-60 Hacker out of the way. P-60 Hacker resets G-47 Trooper, system corruption cleaned. Slammed into P-60 Hacker. Carbon-fiber Leg destroyed. Acquired Com. Wheel. Carbon-fiber Leg destroyed. Dropped Cld. VTOL Module. [Achievement: Universal Adapter] Acquired Com. Wheel. B-48 Gladiator suffers critical hit. Com. Wheel destroyed. P-60 Hacker resets B-48 Gladiator, system corruption cleaned. System corrupted: Matter fused (-8). Map ----- +----------------------------------------------------+ | ?????????????????????????????????????????????????? | | ?????????????????????????????????????????????????? | | ?????????????????????????????????????????????????? | | ?????????????????????????????????????????????????? | | ?????????????????????????????????????????????????? | | ?????????????????????????????????????????????????? | | ?????????????????????????????????????????????????? | | ?????????????????????????????????????????????????? | | ?????????????????????????????????????????????????? | | ?????????????????????????????????????????????????? | | ?????????????????????????????????????????????????? | | ?????????????????????????????????????????????????? | | ?????????????????????????????????????? ??????????? | | ?????????????????????????????#######?? ??????????? | | ?????????????????????????????# #?? ??????????? | | ?????????????????????????????# #?? ??????????? | | ?????????????????????????????# #?? ??????????? | | ?????????????????????????????# #?# #?????????? | | ?????????????????????????????# #? ?????????? | | ???????????? ############### #? ???####### | | ???????????? # #? ???# | | ?????????????? # #?# #???# | | ????????????? """ + #?# #???# | | ??????????? "T" gpg# #?# #???# | | ?????????? " " Y# #?# #???# | | ????????????????# @ b# #?# #???# | | ????????????????# =Y###+##### ##### | | ????????????????# """ # | | ????????????????# """ # | | ????????????????# """ / | | ????????????????# # | | ????????????????# # | | ????????????????# ##T# ############ # | | ????????????????# #### #??????????# # | | ???############## ####+#########??# # | | ???# # # #??# #### | | ???#""" # # #??# #??# | | ???#"R* " " " " # # #### #### | | ???#""" " " " " # # ## ##/###+# | | ???# "" " " " " # # ## # # | | ???# " " " " # # / / """" # | | ???# " " " " # # """ """ ""## # """" # | | ???# " " " " # # """ """ ""## # """" # | | ???# " " " " # # """ """ T"######## """" # | | ???# " " " " + / "" "" ""#??????# # | | ???# " " " " # # "" "" ""#??????######## | | ???# # # #?????????????? | | ?################ ##############?????????????? | | ?? #???????????????????? | | ?? #???????????????????? | +----------------------------------------------------+ Best States ------------- Heat Dissipation 34 Energy Generation 30 Energy Capacity 490 Matter Stores 379 Matter Capacity 500 Sight Range 18 Robot Scan Range 13 Terrain Scan Density 10 Armor Coverage 150 Reclamation Efficiency 15 Evasion (%) 53 Targeting Accuracy 6 Recoil Reduction 2 Particle Charging 15 Item Schematics ----------------- None Robot Schematics ------------------ None Fabricated ------------ Nothing Alien Tech Used ----------------- None Achievements -------------- I Spy Universal Adapter Challenges ------------ None Game ------ Seed MetafieldImprovedSegregator Manual? 0 Play Time 01:01:31 Cumulative 7.2 hours Start 2022.02.05 @ 11:42:41 End 2022.02.05 @ 12:52:34 Sessions 1 Manual Loads 0 Difficulty Rogue Special Mode None Game No. 7 Rogue 7 Adventurer 0 Explorer 0 Win Type - Total 0 Types 0/0/0/0/0/0/0/0/0 Lore% 1 Gallery% 10 Achievement% 7 Wizard Run 0 Options --------- ASCII 0 Keyboard 0 Movement Arrows Keybinds 0 Fullscreen 1 Font 18/SmallcapsGlow Map View 76x50 Tactical HUD 0 Map Filters NONE Filters NONE Steam 1 RUN: e30e2c5c-226e-43ab-8de0-cb3a97fad36e